[Event "Early-Titled-Tuesday-Blitz-June-18-2024"]
[Site "Chess.com"]
[Date "2024.06.18"]
[Round "2"]
[White "Lion-Al-Messi"]
[Black "Kacparov"]
[Result "1-0"]
[WhiteElo "2634"]
[BlackElo "2879"]
[TimeControl "180+1"]
[EndTime "8:16:54 PDT"]
[Termination "Lion-Al-Messi won by resignation"]

1. e4 {[%clk 0:03:00.9]} 1... c5 {[%clk 0:03:00.2]} 2. Nf3 {[%clk 0:03:01]} 2...
e6 {[%clk 0:03:00.6]} 3. d4 {[%clk 0:03:01.2]} 3... cxd4 {[%clk 0:03:01.5]} 4.
Nxd4 {[%clk 0:03:01.6]} 4... Nc6 {[%clk 0:03:02.2]} 5. Nc3 {[%clk 0:03:01.6]}
5... Qc7 {[%clk 0:03:02.7]} 6. Be3 {[%clk 0:03:01.2]} 6... a6 {[%clk 0:03:03.2]}
7. Qd2 {[%clk 0:03:01.3]} 7... Nf6 {[%clk 0:03:03.7]} 8. O-O-O {[%clk
0:03:01.8]} 8... Bb4 {[%clk 0:03:03.4]} 9. f3 {[%clk 0:03:01.9]} 9... Ne5 {[%clk
0:03:03.4]} 10. Nb3 {[%clk 0:02:58.3]} 10... b5 {[%clk 0:03:03.6]} 11. Qe1
{[%clk 0:02:58.5]} 11... Rb8 {[%clk 0:03:03.4]} 12. Bd4 {[%clk 0:02:56.6]} 12...
Nc6 {[%clk 0:02:53.2]} 13. Bxf6 {[%clk 0:02:51.2]} 13... gxf6 {[%clk 0:02:51.4]}
14. a3 {[%clk 0:02:51.7]} 14... Be7 {[%clk 0:02:40.8]} 15. Kb1 {[%clk
0:02:46.7]} 15... b4 {[%clk 0:02:36.3]} 16. axb4 {[%clk 0:02:46.1]} 16... Bxb4
{[%clk 0:02:35.5]} 17. Qe3 {[%clk 0:02:43.6]} 17... Ne5 {[%clk 0:02:26.6]} 18.
f4 {[%clk 0:02:41.5]} 18... Ng6 {[%clk 0:01:54.4]} 19. g3 {[%clk 0:02:36.6]}
19... Bb7 {[%clk 0:01:52.5]} 20. Na4 {[%clk 0:02:29.7]} 20... Rc8 {[%clk
0:01:25.3]} 21. Bd3 {[%clk 0:02:28.9]} 21... O-O {[%clk 0:01:09.9]} 22. h4
{[%clk 0:02:28.4]} 22... Ne7 {[%clk 0:00:57.4]} 23. Qd4 {[%clk 0:02:23.1]} 23...
a5 {[%clk 0:00:35.9]} 24. Qxf6 {[%clk 0:02:22.3]} 24... Nc6 {[%clk 0:00:18.4]}
25. e5 {[%clk 0:02:18.7]} 25... Be7 {[%clk 0:00:17.1]} 26. Qh6 {[%clk
0:02:18.7]} 26... f5 {[%clk 0:00:16.6]} 27. exf6 {[%clk 0:02:18.7]} 27... Rxf6
{[%clk 0:00:17]} 28. Qxh7+ {[%clk 0:02:17.3]} 28... Kf8 {[%clk 0:00:17.6]} 29.
Bg6 {[%clk 0:02:13.8]} 29... Rxg6 {[%clk 0:00:15.4]} 30. Qxg6 {[%clk 0:02:14.7]}
30... Nb4 {[%clk 0:00:14.9]} 31. Rh2 {[%clk 0:02:11.1]} 31... Qc6 {[%clk
0:00:12.1]} 32. Nc3 {[%clk 0:01:47.6]} 32... Qf3 {[%clk 0:00:12.3]} 33. Nd4
{[%clk 0:01:45]} 33... Qe3 {[%clk 0:00:10.9]} 34. Re2 {[%clk 0:01:42.7]} 34...
Rxc3 {[%clk 0:00:09]} 35. Rxe3 {[%clk 0:01:39.5]} 35... Rxe3 {[%clk 0:00:09.9]}
36. f5 {[%clk 0:01:33]} 36... Be4 {[%clk 0:00:08.6]} 37. Qh6+ {[%clk 0:01:33.3]}
1-0

[Event "Early-Titled-Tuesday-Blitz-June-18-2024"]
[Site "Chess.com"]
[Date "2024.06.18"]
[Round "2"]
[White "Xavier_mompel"]
[Black "ChessSwole"]
[Result "1-0"]
[WhiteElo "2439"]
[BlackElo "2709"]
[TimeControl "180+1"]
[EndTime "8:16:54 PDT"]
[Termination "Xavier_mompel won by resignation"]

1. e4 {[%clk 0:03:00.9]} 1... e5 {[%clk 0:02:58.5]} 2. Nf3 {[%clk 0:03:00.5]}
2... Nc6 {[%clk 0:02:58.9]} 3. Bb5 {[%clk 0:03:00.1]} 3... f5 {[%clk 0:02:57.5]}
4. d3 {[%clk 0:02:59.6]} 4... fxe4 {[%clk 0:02:57.5]} 5. dxe4 {[%clk 0:03:00.5]}
5... Nf6 {[%clk 0:02:58]} 6. O-O {[%clk 0:03:00.9]} 6... Bc5 {[%clk 0:02:56.7]}
7. Nc3 {[%clk 0:02:55.4]} 7... d6 {[%clk 0:02:55.1]} 8. Bg5 {[%clk 0:02:48.6]}
8... O-O {[%clk 0:02:19.6]} 9. Nd5 {[%clk 0:02:48.1]} 9... Kh8 {[%clk
0:02:08.6]} 10. Nxf6 {[%clk 0:02:20.6]} 10... gxf6 {[%clk 0:02:09.5]} 11. Bh6
{[%clk 0:02:20.7]} 11... Rg8 {[%clk 0:02:09.9]} 12. Bc4 {[%clk 0:02:11.2]} 12...
Rg6 {[%clk 0:02:09.5]} 13. Qd2 {[%clk 0:02:11.4]} 13... Qe7 {[%clk 0:01:28.7]}
14. Kh1 {[%clk 0:01:39.5]} 14... Be6 {[%clk 0:01:23.2]} 15. Bxe6 {[%clk
0:01:28.9]} 15... Qxe6 {[%clk 0:01:24.1]} 16. Nh4 {[%clk 0:01:25.3]} 16... Rg4
{[%clk 0:01:23]} 17. Nf5 {[%clk 0:01:17.2]} 17... Rag8 {[%clk 0:01:22.3]} 18. f3
{[%clk 0:01:03.4]} 18... Rxg2 {[%clk 0:01:17.7]} 19. Qxg2 {[%clk 0:01:04.3]}
19... Rxg2 {[%clk 0:01:18]} 20. Kxg2 {[%clk 0:01:05.2]} 20... Qc4 {[%clk
0:01:18.3]} 21. Kh1 {[%clk 0:00:47.5]} 21... Qxc2 {[%clk 0:01:09.8]} 22. Rg1
{[%clk 0:00:43.8]} 22... Bxg1 {[%clk 0:00:38.1]} 23. Rxg1 {[%clk 0:00:44.7]} 1-0

[Event "Early-Titled-Tuesday-Blitz-June-18-2024"]
[Site "Chess.com"]
[Date "2024.06.18"]
[Round "2"]
[White "InadaC"]
[Black "Erdnya15"]
[Result "0-1"]
[WhiteElo "2229"]
[BlackElo "2496"]
[TimeControl "180+1"]
[EndTime "8:16:55 PDT"]
[Termination "Erdnya15 won by checkmate"]

1. d4 {[%clk 0:03:00.9]} 1... d5 {[%clk 0:02:59.6]} 2. c4 {[%clk 0:02:57.4]}
2... c6 {[%clk 0:02:59.5]} 3. Nc3 {[%clk 0:02:53.8]} 3... Nf6 {[%clk 0:02:59.7]}
4. cxd5 {[%clk 0:02:52.3]} 4... cxd5 {[%clk 0:03:00.6]} 5. Bg5 {[%clk
0:02:51.4]} 5... Ne4 {[%clk 0:02:58.6]} 6. Bh4 {[%clk 0:02:45.1]} 6... Nxc3
{[%clk 0:02:52.1]} 7. bxc3 {[%clk 0:02:44.5]} 7... Nc6 {[%clk 0:02:52.6]} 8. e3
{[%clk 0:02:44.2]} 8... Qa5 {[%clk 0:02:45.5]} 9. Qb3 {[%clk 0:02:43.7]} 9... e6
{[%clk 0:02:45.4]} 10. Nf3 {[%clk 0:02:43.1]} 10... Bd6 {[%clk 0:02:42]} 11. Bd3
{[%clk 0:02:41.7]} 11... O-O {[%clk 0:02:35.7]} 12. O-O {[%clk 0:02:42]} 12...
h6 {[%clk 0:02:34.9]} 13. c4 {[%clk 0:02:38.3]} 13... dxc4 {[%clk 0:02:34]} 14.
Bxc4 {[%clk 0:02:37.7]} 14... Qc7 {[%clk 0:02:31.3]} 15. Rac1 {[%clk 0:02:32.8]}
15... Na5 {[%clk 0:02:26.8]} 16. Qd3 {[%clk 0:02:32]} 16... Nxc4 {[%clk
0:02:26.6]} 17. Rxc4 {[%clk 0:02:30.1]} 17... Qb6 {[%clk 0:02:23.4]} 18. Rb1
{[%clk 0:02:27.4]} 18... Qa6 {[%clk 0:02:23.3]} 19. Qb3 {[%clk 0:02:13.1]} 19...
Bd7 {[%clk 0:02:21.4]} 20. Rcc1 {[%clk 0:02:07.6]} 20... Bc6 {[%clk 0:02:17]}
21. Nd2 {[%clk 0:02:07.4]} 21... Bd5 {[%clk 0:02:14.7]} 22. Qc3 {[%clk
0:01:37.6]} 22... Rac8 {[%clk 0:01:47.1]} 23. Qa1 {[%clk 0:01:18.9]} 23... Qd3
{[%clk 0:01:30.4]} 24. Nf1 {[%clk 0:01:03.1]} 24... Qe4 {[%clk 0:01:17.4]} 25.
f3 {[%clk 0:00:41.7]} 25... Qxh4 {[%clk 0:01:13.1]} 26. e4 {[%clk 0:00:41.1]}
26... Bc4 {[%clk 0:01:10.6]} 27. Ne3 {[%clk 0:00:35.5]} 27... Bxh2+ {[%clk
0:00:52.2]} 28. Kh1 {[%clk 0:00:29.8]} 28... Bg3+ {[%clk 0:00:53.1]} 29. Kg1
{[%clk 0:00:29.2]} 29... Qh2# {[%clk 0:00:54]} 0-1

[Event "Early-Titled-Tuesday-Blitz-June-18-2024"]
[Site "Chess.com"]
[Date "2024.06.18"]
[Round "2"]
[White "Msb2"]
[Black "Juwen"]
[Result "1-0"]
[WhiteElo "3052"]
[BlackElo "2660"]
[TimeControl "180+1"]
[EndTime "8:16:57 PDT"]
[Termination "Msb2 won by resignation"]

1. d4 {[%clk 0:03:00.9]} 1... Nf6 {[%clk 0:02:59.3]} 2. c4 {[%clk 0:03:01.3]}
2... e6 {[%clk 0:02:59.6]} 3. Nc3 {[%clk 0:03:01.9]} 3... Bb4 {[%clk 0:02:59.9]}
4. e3 {[%clk 0:03:02.2]} 4... O-O {[%clk 0:02:59]} 5. Bd2 {[%clk 0:03:02.8]}
5... b6 {[%clk 0:02:55.8]} 6. Nf3 {[%clk 0:03:02.8]} 6... Bb7 {[%clk 0:02:55.5]}
7. Bd3 {[%clk 0:03:01.8]} 7... d5 {[%clk 0:02:54.1]} 8. cxd5 {[%clk 0:03:01.6]}
8... exd5 {[%clk 0:02:55]} 9. Rc1 {[%clk 0:03:02.2]} 9... Be7 {[%clk 0:02:49.9]}
10. O-O {[%clk 0:03:01.6]} 10... c5 {[%clk 0:02:49.9]} 11. Ne5 {[%clk
0:03:02.3]} 11... Nc6 {[%clk 0:02:45.6]} 12. a3 {[%clk 0:03:02.7]} 12... Bd6
{[%clk 0:02:32.3]} 13. Ng4 {[%clk 0:03:01.9]} 13... cxd4 {[%clk 0:02:09.5]} 14.
exd4 {[%clk 0:02:49]} 14... Be7 {[%clk 0:01:48.7]} 15. Bg5 {[%clk 0:02:27.7]}
15... Ne4 {[%clk 0:01:22.7]} 16. Bxe7 {[%clk 0:02:20.5]} 16... Nxe7 {[%clk
0:01:23.6]} 17. Ne3 {[%clk 0:02:17.1]} 17... Rc8 {[%clk 0:01:20.9]} 18. Qf3
{[%clk 0:02:05.8]} 18... f5 {[%clk 0:01:11.3]} 19. Qh3 {[%clk 0:01:46.8]} 19...
a6 {[%clk 0:01:04.6]} 20. Ne2 {[%clk 0:01:32.6]} 20... Qd6 {[%clk 0:01:02.2]}
21. f3 {[%clk 0:01:30.9]} 21... Nd2 {[%clk 0:00:55.8]} 22. Nxf5 {[%clk
0:01:15.4]} 22... Nxf5 {[%clk 0:00:45.6]} 23. Bxf5 {[%clk 0:01:16.3]} 23... Rxf5
{[%clk 0:00:45.6]} 24. Qxf5 {[%clk 0:01:17.2]} 24... Rf8 {[%clk 0:00:45.9]} 25.
Qe5 {[%clk 0:01:14.9]} 25... Qxe5 {[%clk 0:00:45.2]} 26. dxe5 {[%clk 0:01:15.8]}
26... Nxf1 {[%clk 0:00:45.8]} 27. Kxf1 {[%clk 0:01:16.7]} 27... a5 {[%clk
0:00:44.4]} 28. Nd4 {[%clk 0:01:14.8]} 28... Ba6+ {[%clk 0:00:41.8]} 29. Kf2
{[%clk 0:01:14.5]} 29... g5 {[%clk 0:00:41.7]} 30. Rc6 {[%clk 0:01:12.5]} 30...
Bc4 {[%clk 0:00:41.6]} 31. b3 {[%clk 0:01:12]} 31... Bd3 {[%clk 0:00:41.4]} 32.
Ke3 {[%clk 0:01:10.9]} 32... Bg6 {[%clk 0:00:40.9]} 33. Rxb6 {[%clk 0:01:10.3]}
33... Re8 {[%clk 0:00:41.3]} 34. e6 {[%clk 0:01:09.6]} 34... Rc8 {[%clk
0:00:41.2]} 35. Nc6 {[%clk 0:01:08.2]} 35... Kg7 {[%clk 0:00:40.2]} 36. Kd4
{[%clk 0:01:08.5]} 36... Kf6 {[%clk 0:00:38.8]} 37. Kxd5 {[%clk 0:01:08.8]} 1-0

[Event "Early-Titled-Tuesday-Blitz-June-18-2024"]
[Site "Chess.com"]
[Date "2024.06.18"]
[Round "2"]
[White "Laico"]
[Black "elizabethcastaneda"]
[Result "1-0"]
[WhiteElo "2443"]
[BlackElo "1905"]
[TimeControl "180+1"]
[EndTime "8:16:57 PDT"]
[Termination "Laico won on time"]

1. e4 {[%clk 0:02:57]} 1... c5 {[%clk 0:02:59.6]} 2. Nc3 {[%clk 0:02:56.1]} 2...
g6 {[%clk 0:02:56.9]} 3. f4 {[%clk 0:02:56.5]} 3... Bg7 {[%clk 0:02:55.5]} 4.
Nf3 {[%clk 0:02:56.7]} 4... e6 {[%clk 0:02:54.6]} 5. f5 {[%clk 0:02:55.5]} 5...
exf5 {[%clk 0:02:35.5]} 6. exf5 {[%clk 0:02:56.4]} 6... Ne7 {[%clk 0:02:26.7]}
7. fxg6 {[%clk 0:02:54.8]} 7... hxg6 {[%clk 0:02:24.5]} 8. d4 {[%clk 0:02:45.8]}
8... cxd4 {[%clk 0:01:36.6]} 9. Nxd4 {[%clk 0:02:46.7]} 9... d5 {[%clk
0:01:35.7]} 10. Bg5 {[%clk 0:02:29.1]} 10... Nbc6 {[%clk 0:01:05.6]} 11. Bb5
{[%clk 0:02:25.2]} 11... Qb6 {[%clk 0:00:55]} 12. Bxe7 {[%clk 0:02:24.8]} 12...
Qxd4 {[%clk 0:00:46.7]} 13. Qxd4 {[%clk 0:02:19.2]} 13... Bxd4 {[%clk 0:00:46]}
14. Nxd5 {[%clk 0:02:18.6]} 14... Be6 {[%clk 0:00:43.7]} 15. Bf6 {[%clk
0:02:10.4]} 15... Bxf6 {[%clk 0:00:39.5]} 16. Nxf6+ {[%clk 0:02:11.1]} 16... Ke7
{[%clk 0:00:39.7]} 17. Bxc6 {[%clk 0:02:02.2]} 17... bxc6 {[%clk 0:00:35.4]} 18.
Ne4 {[%clk 0:01:54.7]} 18... Rh4 {[%clk 0:00:35.1]} 19. Nf2 {[%clk 0:01:46.3]}
19... Rd8 {[%clk 0:00:23.1]} 20. Rd1 {[%clk 0:01:39.1]} 20... Rdh8 {[%clk
0:00:11.9]} 21. h3 {[%clk 0:01:36.9]} 21... Bd5 {[%clk 0:00:09.8]} 22. O-O
{[%clk 0:01:34.1]} 22... f5 {[%clk 0:00:05.2]} 23. b3 {[%clk 0:01:31.6]} 23...
Kf6 {[%clk 0:00:04.8]} 24. c4 {[%clk 0:01:31.6]} 24... Be6 {[%clk 0:00:04.3]}
25. Rd6 {[%clk 0:01:31.8]} 25... Re8 {[%clk 0:00:02.9]} 26. Rxc6 {[%clk
0:01:29.6]} 26... g5 {[%clk 0:00:02.8]} 27. Ng4+ {[%clk 0:01:20.8]} 1-0

[Event "Early-Titled-Tuesday-Blitz-June-18-2024"]
[Site "Chess.com"]
[Date "2024.06.18"]
[Round "2"]
[White "MaestroCheck"]
[Black "Sam_ChessMood"]
[Result "0-1"]
[WhiteElo "2638"]
[BlackElo "2958"]
[TimeControl "180+1"]
[EndTime "8:16:59 PDT"]
[Termination "Sam_ChessMood won by resignation"]

1. e4 {[%clk 0:03:00.9]} 1... e5 {[%clk 0:02:57.8]} 2. Nf3 {[%clk 0:02:59]} 2...
Nc6 {[%clk 0:02:57.9]} 3. d4 {[%clk 0:02:58.8]} 3... exd4 {[%clk 0:02:56.5]} 4.
Bc4 {[%clk 0:02:59]} 4... Nf6 {[%clk 0:02:55.4]} 5. e5 {[%clk 0:02:58.6]} 5...
d5 {[%clk 0:02:53.5]} 6. Bb5 {[%clk 0:02:59]} 6... Ne4 {[%clk 0:02:39.1]} 7.
Nxd4 {[%clk 0:02:58.6]} 7... Bd7 {[%clk 0:02:39.1]} 8. Bxc6 {[%clk 0:02:55.8]}
8... bxc6 {[%clk 0:02:38.7]} 9. O-O {[%clk 0:02:56.3]} 9... Be7 {[%clk
0:02:37.6]} 10. f3 {[%clk 0:02:55.4]} 10... Nc5 {[%clk 0:02:37.6]} 11. f4 {[%clk
0:02:55.5]} 11... O-O {[%clk 0:02:37.4]} 12. Nc3 {[%clk 0:02:37.1]} 12... f6
{[%clk 0:02:30.4]} 13. Qe2 {[%clk 0:02:25.7]} 13... fxe5 {[%clk 0:02:26.7]} 14.
fxe5 {[%clk 0:02:21.8]} 14... Rxf1+ {[%clk 0:02:25.4]} 15. Qxf1 {[%clk
0:02:22.7]} 15... Ne6 {[%clk 0:02:17.3]} 16. Nf5 {[%clk 0:02:21.8]} 16... Bc5+
{[%clk 0:02:11.2]} 17. Kh1 {[%clk 0:02:21.9]} 17... Qf8 {[%clk 0:02:10.3]} 18.
Bd2 {[%clk 0:02:18.5]} 18... Nd4 {[%clk 0:02:06.4]} 19. Nxd4 {[%clk 0:02:12.6]}
19... Qxf1+ {[%clk 0:02:05.9]} 20. Rxf1 {[%clk 0:02:13.5]} 20... Bxd4 {[%clk
0:02:05.7]} 21. Re1 {[%clk 0:02:11.8]} 21... Re8 {[%clk 0:01:56.1]} 22. Bf4
{[%clk 0:02:11.8]} 22... Bf5 {[%clk 0:01:55.6]} 23. e6 {[%clk 0:02:07]} 23...
Rxe6 {[%clk 0:01:50]} 24. Rxe6 {[%clk 0:02:06]} 24... Bxe6 {[%clk 0:01:50.9]}
25. Bxc7 {[%clk 0:02:06.7]} 25... Bf5 {[%clk 0:01:50.6]} 26. Ne2 {[%clk
0:02:06]} 26... Bxb2 {[%clk 0:01:49.8]} 27. Bb8 {[%clk 0:02:00.3]} 27... a5
{[%clk 0:01:46.4]} 28. c3 {[%clk 0:02:00]} 28... a4 {[%clk 0:01:34.5]} 29. Bd6
{[%clk 0:01:51.8]} 29... a3 {[%clk 0:01:12.9]} 30. Nd4 {[%clk 0:01:43.5]} 30...
Bb1 {[%clk 0:01:12.4]} 31. Kg1 {[%clk 0:01:29.1]} 31... Bxa2 {[%clk 0:01:02.6]}
32. Nc2 {[%clk 0:01:29]} 32... Bxc3 {[%clk 0:00:55.1]} 33. Bxa3 {[%clk
0:01:27.7]} 33... d4 {[%clk 0:00:52.3]} 34. Nb4 {[%clk 0:01:23.8]} 34... Bc4
{[%clk 0:00:40.1]} 35. Kf2 {[%clk 0:01:19.3]} 35... d3 {[%clk 0:00:38.7]} 36.
Na2 {[%clk 0:01:03.4]} 36... Bxa2 {[%clk 0:00:37.2]} 0-1

[Event "Early-Titled-Tuesday-Blitz-June-18-2024"]
[Site "Chess.com"]
[Date "2024.06.18"]
[Round "2"]
[White "jguerramzllo"]
[Black "BobbyFischer1508"]
[Result "1-0"]
[WhiteElo "2668"]
[BlackElo "2413"]
[TimeControl "180+1"]
[EndTime "8:16:59 PDT"]
[Termination "jguerramzllo won on time"]

1. e4 {[%clk 0:03:00.9]} 1... e6 {[%clk 0:02:59.4]} 2. d4 {[%clk 0:03:00.5]}
2... d5 {[%clk 0:02:59.1]} 3. exd5 {[%clk 0:02:59.1]} 3... exd5 {[%clk
0:02:58.4]} 4. Nf3 {[%clk 0:02:59]} 4... Bd6 {[%clk 0:02:56.1]} 5. c4 {[%clk
0:02:56.9]} 5... Nf6 {[%clk 0:02:44.8]} 6. Nc3 {[%clk 0:02:52.5]} 6... O-O
{[%clk 0:02:43.9]} 7. cxd5 {[%clk 0:02:51.8]} 7... h6 {[%clk 0:02:40.2]} 8. Be2
{[%clk 0:02:31.8]} 8... Nbd7 {[%clk 0:02:39.7]} 9. O-O {[%clk 0:02:31.7]} 9...
Nb6 {[%clk 0:02:39.6]} 10. Qb3 {[%clk 0:02:31.3]} 10... a6 {[%clk 0:02:29.7]}
11. a4 {[%clk 0:02:30.2]} 11... Nbxd5 {[%clk 0:02:28.6]} 12. Bd2 {[%clk
0:02:21.4]} 12... Nf4 {[%clk 0:02:23.4]} 13. Bc4 {[%clk 0:02:17.2]} 13... c6
{[%clk 0:01:42.1]} 14. Rfe1 {[%clk 0:02:15.3]} 14... Bc7 {[%clk 0:01:26.7]} 15.
Bxf4 {[%clk 0:02:06.6]} 15... Bxf4 {[%clk 0:01:25.4]} 16. h3 {[%clk 0:01:56.1]}
16... Rb8 {[%clk 0:01:20.1]} 17. a5 {[%clk 0:01:45]} 17... Nh7 {[%clk 0:00:42]}
18. Ne4 {[%clk 0:01:30.8]} 18... Ng5 {[%clk 0:00:22.3]} 19. d5 {[%clk
0:01:18.9]} 19... Nxf3+ {[%clk 0:00:17.9]} 20. Qxf3 {[%clk 0:01:18.5]} 20...
cxd5 {[%clk 0:00:15.6]} 21. Qxf4 {[%clk 0:01:18.4]} 21... Be6 {[%clk 0:00:10.6]}
22. Red1 {[%clk 0:01:02.1]} 1-0

[Event "Early-Titled-Tuesday-Blitz-June-18-2024"]
[Site "Chess.com"]
[Date "2024.06.18"]
[Round "2"]
[White "HATilay"]
[Black "Vaathi_Coming"]
[Result "1-0"]
[WhiteElo "2636"]
[BlackElo "2882"]
[TimeControl "180+1"]
[EndTime "8:17:00 PDT"]
[Termination "HATilay won on time"]

1. e4 {[%clk 0:03:00.9]} 1... g6 {[%clk 0:02:56.1]} 2. d4 {[%clk 0:03:00.2]}
2... Bg7 {[%clk 0:02:56.6]} 3. Nc3 {[%clk 0:03:00.7]} 3... d6 {[%clk 0:02:56.4]}
4. Be3 {[%clk 0:03:00.8]} 4... a6 {[%clk 0:02:54.4]} 5. f3 {[%clk 0:03:01.1]}
5... b5 {[%clk 0:02:54.5]} 6. Qd2 {[%clk 0:03:01.6]} 6... Nd7 {[%clk 0:02:53.9]}
7. h4 {[%clk 0:03:01.5]} 7... h5 {[%clk 0:02:53.4]} 8. Nh3 {[%clk 0:03:00.4]}
8... Ngf6 {[%clk 0:02:52.4]} 9. Ng5 {[%clk 0:03:00.8]} 9... Bb7 {[%clk
0:02:45.9]} 10. a4 {[%clk 0:02:54.2]} 10... c6 {[%clk 0:02:31.5]} 11. Be2 {[%clk
0:02:45.1]} 11... O-O {[%clk 0:02:30.4]} 12. O-O {[%clk 0:02:45.1]} 12... e5
{[%clk 0:02:19.7]} 13. dxe5 {[%clk 0:02:30.3]} 13... Nxe5 {[%clk 0:02:20.6]} 14.
axb5 {[%clk 0:02:15.1]} 14... axb5 {[%clk 0:02:19.3]} 15. Rxa8 {[%clk
0:02:15.3]} 15... Bxa8 {[%clk 0:02:18.8]} 16. Rd1 {[%clk 0:02:15.8]} 16... Ne8
{[%clk 0:01:29.3]} 17. f4 {[%clk 0:02:01.4]} 17... Ng4 {[%clk 0:00:48.7]} 18.
Bxg4 {[%clk 0:02:00.5]} 18... hxg4 {[%clk 0:00:49.6]} 19. e5 {[%clk 0:02:01.2]}
19... Qd7 {[%clk 0:00:20.7]} 20. Nce4 {[%clk 0:01:23.7]} 20... c5 {[%clk
0:00:14.7]} 21. Nxd6 {[%clk 0:01:16.2]} 21... Qc6 {[%clk 0:00:03.5]} 22. Qe2
{[%clk 0:01:04.9]} 1-0

[Event "Early-Titled-Tuesday-Blitz-June-18-2024"]
[Site "Chess.com"]
[Date "2024.06.18"]
[Round "2"]
[White "SirStrateg"]
[Black "HansOnTwitch"]
[Result "0-1"]
[WhiteElo "2679"]
[BlackElo "3163"]
[TimeControl "180+1"]
[EndTime "8:17:01 PDT"]
[Termination "HansOnTwitch won by resignation"]

1. d4 {[%clk 0:03:00.9]} 1... Nf6 {[%clk 0:02:59.5]} 2. Bg5 {[%clk 0:02:59.9]}
2... d5 {[%clk 0:02:57.2]} 3. Bxf6 {[%clk 0:03:00]} 3... gxf6 {[%clk 0:02:55.6]}
4. e3 {[%clk 0:03:00]} 4... c5 {[%clk 0:02:55.2]} 5. dxc5 {[%clk 0:03:00.4]}
5... e6 {[%clk 0:02:54]} 6. Nf3 {[%clk 0:03:00.4]} 6... Nc6 {[%clk 0:02:51]} 7.
Be2 {[%clk 0:02:58.7]} 7... Bxc5 {[%clk 0:02:50.2]} 8. Nbd2 {[%clk 0:02:59.1]}
8... e5 {[%clk 0:02:41]} 9. a3 {[%clk 0:02:50.7]} 9... e4 {[%clk 0:02:34.4]} 10.
Nh4 {[%clk 0:02:50.9]} 10... f5 {[%clk 0:02:33.1]} 11. g3 {[%clk 0:02:49]} 11...
f4 {[%clk 0:02:24.9]} 12. Nb3 {[%clk 0:02:41.7]} 12... Be7 {[%clk 0:02:21.6]}
13. exf4 {[%clk 0:02:33.5]} 13... Bxh4 {[%clk 0:02:21]} 14. gxh4 {[%clk
0:02:34.4]} 14... Be6 {[%clk 0:02:18.3]} 15. Qd2 {[%clk 0:02:20.1]} 15... Qxh4
{[%clk 0:02:09.6]} 16. f5 {[%clk 0:02:15.9]} 16... Bxf5 {[%clk 0:02:07.1]} 17.
Qxd5 {[%clk 0:02:16.2]} 17... Be6 {[%clk 0:02:05.1]} 18. Qh5 {[%clk 0:02:10.1]}
18... Qxh5 {[%clk 0:02:02.7]} 19. Bxh5 {[%clk 0:02:11]} 19... O-O-O {[%clk
0:02:02.1]} 20. Nc5 {[%clk 0:01:53.5]} 20... Rd5 {[%clk 0:01:56.2]} 21. Nxe6
{[%clk 0:01:53]} 21... Rxh5 {[%clk 0:01:56.2]} 22. Nf4 {[%clk 0:01:50.6]} 22...
Rf5 {[%clk 0:01:55.4]} 23. Ne2 {[%clk 0:01:46.7]} 23... Rd8 {[%clk 0:01:53.9]}
24. Nc3 {[%clk 0:01:29.2]} 24... Nd4 {[%clk 0:01:40.6]} 25. O-O-O {[%clk
0:01:29.3]} 25... Rxf2 {[%clk 0:01:35.7]} 26. Nxe4 {[%clk 0:01:27.9]} 26...
Rxc2+ {[%clk 0:01:35.6]} 27. Kb1 {[%clk 0:01:28.5]} 27... Re2 {[%clk 0:01:34.7]}
28. Ng5 {[%clk 0:01:20.9]} 28... f5 {[%clk 0:01:30.2]} 29. Nxh7 {[%clk
0:01:17.2]} 29... f4 {[%clk 0:01:30.5]} 30. Ng5 {[%clk 0:01:13.5]} 30... Nb3
{[%clk 0:01:01.5]} 31. Rxd8+ {[%clk 0:01:08.7]} 31... Kxd8 {[%clk 0:01:02.4]}
32. Ka2 {[%clk 0:01:05.5]} 32... Nd2 {[%clk 0:01:00.6]} 33. Rd1 {[%clk
0:00:58.5]} 33... Ke7 {[%clk 0:00:59.4]} 34. h4 {[%clk 0:00:58.2]} 34... f3
{[%clk 0:00:55.7]} 35. Rf1 {[%clk 0:00:37.3]} 35... Nxf1 {[%clk 0:00:51.5]} 0-1

[Event "Early-Titled-Tuesday-Blitz-June-18-2024"]
[Site "Chess.com"]
[Date "2024.06.18"]
[Round "2"]
[White "Zampronha1971"]
[Black "NikolaGry"]
[Result "0-1"]
[WhiteElo "2416"]
[BlackElo "2705"]
[TimeControl "180+1"]
[EndTime "8:17:03 PDT"]
[Termination "NikolaGry won by resignation"]

1. e4 {[%clk 0:03:00.9]} 1... d5 {[%clk 0:02:59.1]} 2. exd5 {[%clk 0:02:59.8]}
2... Nf6 {[%clk 0:02:59.1]} 3. c4 {[%clk 0:02:57.9]} 3... c6 {[%clk 0:02:58.1]}
4. d4 {[%clk 0:02:56.6]} 4... cxd5 {[%clk 0:02:58.1]} 5. Nc3 {[%clk 0:02:57.2]}
5... e6 {[%clk 0:02:58.2]} 6. Nf3 {[%clk 0:02:56.7]} 6... Bb4 {[%clk 0:02:57.4]}
7. Qc2 {[%clk 0:02:53.1]} 7... Nc6 {[%clk 0:02:55.4]} 8. a3 {[%clk 0:02:48.6]}
8... Bxc3+ {[%clk 0:02:54.8]} 9. bxc3 {[%clk 0:02:47.7]} 9... dxc4 {[%clk
0:02:50]} 10. Bxc4 {[%clk 0:02:47.2]} 10... O-O {[%clk 0:02:49.3]} 11. O-O
{[%clk 0:02:46.6]} 11... b6 {[%clk 0:02:49.2]} 12. Bg5 {[%clk 0:02:45.7]} 12...
h6 {[%clk 0:02:47]} 13. Bh4 {[%clk 0:02:45.2]} 13... Bb7 {[%clk 0:02:46.3]} 14.
Qe2 {[%clk 0:02:42.5]} 14... Rc8 {[%clk 0:02:43.3]} 15. Bd3 {[%clk 0:02:38.9]}
15... Ne7 {[%clk 0:02:22.5]} 16. Bxf6 {[%clk 0:02:31]} 16... gxf6 {[%clk
0:02:22]} 17. c4 {[%clk 0:02:19]} 17... Bxf3 {[%clk 0:02:10]} 18. Qxf3 {[%clk
0:02:17.6]} 18... Qxd4 {[%clk 0:02:09.8]} 19. Rfd1 {[%clk 0:02:12.1]} 19... Qe5
{[%clk 0:02:05.9]} 20. Re1 {[%clk 0:02:04.2]} 20... Qg5 {[%clk 0:02:00.5]} 21.
Qb7 {[%clk 0:02:02.7]} 21... Ng6 {[%clk 0:01:51.6]} 22. Re3 {[%clk 0:01:49.7]}
22... f5 {[%clk 0:01:46.1]} 23. Rg3 {[%clk 0:01:37.9]} 23... Qf6 {[%clk
0:01:40.1]} 24. Re1 {[%clk 0:01:29.1]} 24... f4 {[%clk 0:01:19.4]} 25. Rh3
{[%clk 0:01:17.1]} 25... Ne5 {[%clk 0:01:16.3]} 26. Qe4 {[%clk 0:01:09.9]} 26...
Nxd3 {[%clk 0:01:14]} 27. Qxd3 {[%clk 0:01:09.5]} 27... Rfd8 {[%clk 0:01:09.6]}
28. Qe4 {[%clk 0:01:09.7]} 28... Rd4 {[%clk 0:01:04.6]} 29. Qb7 {[%clk 0:01:08]}
29... Rdxc4 {[%clk 0:01:04]} 30. Qxa7 {[%clk 0:01:07.3]} 30... Rc1 {[%clk
0:01:02.6]} 31. Rf1 {[%clk 0:00:51.4]} 31... Qa1 {[%clk 0:00:49.6]} 32. Qa6
{[%clk 0:00:45.3]} 32... Rxf1+ {[%clk 0:00:47.6]} 0-1